bitfinex/quotes_ETHUSD_20240630
["timestamp","ask_amount","ask_price","bid_price","bid_amount"]
[1719768075749,6.946398,3422.3,3422.2,0.26303179]
[1719768076137,6.395543,3422.3,3422.2,0.26303179]
[1719768076965,3.0,3422.3,3422.2,0.26303179]
[1719768077169,2.689,3422.8,3422.2,0.26303179]
[1719768077170,3.0,3422.7,3422.2,0.26303179]
[1719768077378,3.0,3422.7,3422.1,5.8944]
[1719768079231,3.0,3422.7,3422.3,2.3628]
[1719768079581,2.689,3423.2,3422.4,6.15508775]
[1719768079882,2.689,3422.5,3422.4,6.15508775]
[1719768080121,10.836108,3422.5,3422.4,6.15508775]
[1719768080235,0.36149751,3422.6,3422.4,5.8939]
[1719768080430,2.689,3423.0,3422.5,0.26113923]
[1719768081784,3.0,3422.9,3422.5,0.26113923]
[1719768084165,2.689,3423.8,3422.6,5.95193823]
[1719768084387,0.005,3424.1,3422.6,6.51480775]
[1719768084388,2.689,3423.3,3422.6,6.51480775]
[1719768084587,2.689,3423.3,3422.7,0.26112287]
[1719768084753,3.0,3423.2,3422.7,0.26112287]
[1719768085110,3.0,3423.2,3422.6,6.51480775]
[1719768085111,3.0,3423.2,3422.6,5.8935]
[1719768085403,3.0,3423.2,3422.8,0.26110267]
[1719768085606,3.0,3423.2,3422.7,0.26112287]
[1719768085808,3.0,3423.2,3422.8,0.26110267]
[1719768086107,3.0,3423.2,3422.6,5.8935]
[1719768086249,3.0,3423.2,3422.9,0.26108246]
[1719768086454,3.0,3423.2,3422.0,2.3628]
[1719768086455,3.0,3423.2,3423.0,5.8928]
[1719768086694,3.0,3423.2,3423.1,0.26104206]
[1719768086849,2.689,3423.8,3423.1,0.87642627]
[1719768088149,3.0,3423.7,3423.2,5.8925]
[1719768088350,3.0,3423.7,3423.3,0.26100166]
[1719768088601,0.005,3424.1,3423.4,5.8921]
[1719768088813,2.694,3424.1,3423.4,5.8921]
[1719768089091,2.694,3424.1,3423.5,0.26087069]
[1719768089398,0.005,3424.1,3423.6,5.8918]
[1719768089547,2.689,3423.7,3423.6,5.8918]
[1719768089946,5.689,3423.7,3423.6,5.8918]
[1719768090400,3.0,3423.7,3423.6,5.8918]
[1719768090612,3.0,3423.8,3423.6,5.8918]
[1719768091054,6.568033,3423.7,3423.6,5.8918]
[1719768091248,9.568033,3423.7,3423.6,5.8918]
[1719768091508,9.92953051,3423.7,3423.6,5.8918]
[1719768091817,9.568033,3423.7,3423.6,5.8918]
[1719768091987,9.92953051,3423.7,3423.6,5.8918]
[1719768092375,3.91149751,3423.7,3423.6,5.8918]
[1719768092576,29.83181551,3423.7,3421.8,2.3558]
[1719768092809,2.689,3422.7,3421.8,2.3558]
[1719768094220,2.689,3422.7,3421.9,0.05843784]
[1719768095244,3.0,3423.0,3421.9,0.05843784]
[1719768095417,7.68149751,3423.6,3422.0,0.24142378]
[1719768095418,2.689,3423.2,3422.0,0.24142378]
[1719768095602,3.0,3422.9,3422.1,5.90193019]
[1719768095772,3.0,3422.9,3422.2,0.26107251]
[1719768095969,3.0,3423.1,3422.3,5.9024328]
[1719768096183,3.0,3423.1,3422.4,2.3558]
[1719768096383,5.689,3423.5,3422.5,5.90212793]
[1719768096589,5.689,3423.5,3422.6,0.26105959]
[1719768097413,2.689,3423.5,3422.7,5.8433]
[1719768097737,2.689,3423.5,3422.8,0.93571752]
[1719768097881,2.689,3423.5,3422.9,5.843]
[1719768098282,2.689,3423.5,3423.0,0.26097736]
[1719768098478,2.689,3423.5,3423.1,5.8427]
[1719768098679,3.0,3423.4,3423.1,5.8427]
[1719768098909,3.0,3423.4,3423.2,0.26093696]
[1719768100822,7.275353,3423.3,3423.2,0.26093696]
[1719768101022,10.275353,3423.3,3423.2,0.26093696]
[1719768101337,10.61369217,3423.3,3423.2,0.26093696]
[1719768103190,11.16369217,3423.3,3423.2,0.26093696]
[1719768103396,3.88833917,3423.3,3423.2,0.26093696]
[1719768103596,33.46272917,3423.3,3421.8,2.3558]
[1719768103796,2.689,3422.3,3421.8,2.3558]
[1719768104342,2.689,3422.3,3420.7,2.3558]
[1719768104808,2.689,3422.3,3420.8,0.25285756]
[1719768104992,3.0,3422.2,3420.8,0.25285756]
[1719768105829,2.689,3421.8,3420.8,0.25285756]
[1719768106146,2.689,3421.8,3420.9,0.26086576]
[1719768106493,2.689,3421.8,3421.0,0.25281569]
[1719768106697,2.689,3421.8,3420.9,0.26086576]
[1719768107026,2.689,3421.8,3421.0,0.25281569]
[1719768107230,3.0,3421.7,3421.0,0.25281569]
[1719768107394,3.0,3421.7,3420.7,2.3558]
[1719768107591,3.0,3421.7,3420.7,2.59138]
[1719768107841,3.0,3421.7,3420.8,0.25285615]
[1719768108533,3.0,3421.7,3420.9,0.05845826]
[1719768108894,3.0,3421.7,3421.0,0.25289215]
[1719768109794,3.0,3421.7,3420.0,2.2751]
[1719768109989,3.0,3421.7,3420.1,0.22751]
[1719768110274,3.0,3421.7,3420.2,5.8464]
[1719768110390,3.0,3421.7,3420.3,0.25303375]
[1719768110596,2.689,3421.3,3420.4,5.8473]
[1719768110837,2.689,3421.3,3420.5,0.86302667]
[1719768110996,2.689,3421.3,3420.6,5.8469]
[1719768111200,2.689,3421.3,3420.7,0.25295283]
[1719768112158,3.0,3421.2,3420.7,0.25295283]
[1719768113166,2.689,3420.8,3420.7,0.25295283]
[1719768113313,5.689,3420.8,3420.7,0.25295283]
[1719768113767,10.176567,3420.8,3420.7,0.25295283]
[1719768114116,10.176567,3420.8,3420.6,5.8469]
[1719768114314,9.83546,3420.7,3420.6,5.8469]
[1719768116559,11.19875,3420.7,3420.6,5.8469]
[1719768116715,11.53708917,3420.7,3420.6,5.8469]
[1719768116916,6.46641117,3420.7,3419.0,2.2751]
[1719768117116,6.46641117,3420.7,3419.1,0.28599116]
[1719768117117,2.689,3420.3,3419.1,0.28599116]
[1719768117519,2.689,3420.3,3419.2,0.25345463]
[1719768117953,2.689,3420.3,3419.1,0.22751]
[1719768118282,2.689,3420.3,3419.2,0.25345463]
[1719768118998,2.689,3419.8,3419.2,0.25345463]
[1719768119356,2.689,3419.8,3419.1,0.22751]
[1719768119761,2.689,3419.8,3419.2,0.25363595]
[1719768120193,2.689,3419.8,3419.1,0.22751]
[1719768120506,2.689,3419.8,3419.2,0.25363595]
[1719768120801,2.689,3419.8,3419.3,0.2756246]
[1719768122022,2.689,3419.8,3416.7,0.28888533]
[1719768122023,2.689,3419.8,3418.5,2.2751]
[1719768122312,2.689,3419.8,3418.6,0.25379571]
[1719768122900,2.689,3419.3,3418.6,0.25379571]
[1719768123401,2.689,3419.3,3418.5,2.2751]
[1719768124561,2.689,3419.3,3418.0,2.2751]
[1719768124796,2.689,3419.3,3418.1,0.22751]
[1719768124989,2.689,3418.8,3418.1,0.48164794]
[1719768125304,3.0,3418.7,3418.1,0.31263664]
[1719768125512,3.0,3418.7,3418.1,0.25413794]
[1719768125513,2.689,3418.3,3418.1,0.25413794]
[1719768125674,2.689,3418.2,3417.3,1.825072]
[1719768125870,2.689,3418.2,3417.4,0.4100172]
[1719768126511,2.689,3418.2,3417.5,0.05851199]
[1719768126667,0.35777848,3419.5,3417.6,2.2751]
[1719768126874,0.1181858,3424.6,3419.4,2.689]
[1719768126875,2.2524,3424.0,3419.4,2.689]
[1719768127073,2.2524,3424.0,3418.1,4.4]
[1719768127074,2.2524,3424.0,3421.0,3.839]
[1719768127300,2.2524,3424.0,3420.7,2.2751]
[1719768127301,0.3058267,3423.5,3421.1,8.90265434]
[1719768127469,0.3058267,3423.5,3421.1,5.8461]
[1719768127470,3.69917817,3423.5,3421.1,5.8461]
[1719768127817,0.75,3423.1,3421.1,5.8461]
[1719768128019,0.75,3422.9,3421.1,5.8461]
[1719768128320,2.689,3422.4,3421.1,5.8461]
[1719768128520,0.45744459,3422.3,3421.1,5.8461]
[1719768131214,3.45744459,3422.3,3421.1,5.8461]
[1719768133526,2.689,3421.9,3421.1,5.8461]
[1719768133721,3.72009152,3421.8,3421.1,5.8461]
[1719768134522,2.3093,3421.7,3421.1,5.8461]
[1719768134764,0.72009152,3421.6,3421.1,5.8461]
[1719768134934,3.72009152,3421.6,3421.1,5.8461]
[1719768137128,3.0,3421.6,3421.1,5.8461]
[1719768137322,2.689,3421.9,3421.1,5.8461]
[1719768137323,3.0,3421.8,3421.1,5.8461]
[1719768137551,3.46435232,3421.8,3421.1,5.8461]
[1719768137767,0.46435232,3421.7,3421.1,5.8461]
[1719768138594,2.689,3421.4,3421.1,5.8461]
[1719768138885,0.46435232,3421.3,3421.1,5.8461]
[1719768139780,7.32,3423.9,3421.8,2.04566]
[1719768140100,0.005,3424.1,3422.0,2.04553]
[1719768140101,2.694,3424.1,3422.0,2.04553]
[1719768140388,2.694,3424.1,3421.9,7.81914481]
[1719768140389,2.694,3424.1,3422.1,10.60285162]
[1719768140538,2.694,3424.1,3422.1,9.38383472]
[1719768140745,2.694,3424.1,3422.1,7.33832472]
[1719768140938,2.694,3424.1,3422.1,9.38384472]
[1719768141139,2.694,3424.1,3422.3,2.4955]
[1719768141344,2.694,3424.1,3422.4,5.90231155]
[1719768141554,2.694,3424.1,3422.4,6.14672169]
[1719768142834,3.0,3424.0,3422.4,6.14672169]
[1719768143481,3.0,3424.0,3422.4,6.08831014]
[1719768143643,3.0,3424.0,3422.5,1.15676546]
[1719768143978,3.0,3424.0,3422.6,6.08786973]
[1719768144180,3.0,3424.0,3422.7,0.05841263]
[1719768144415,3.0,3424.0,3422.6,6.08786973]
[1719768144416,3.0,3424.0,3422.8,5.90161686]
[1719768144707,3.0,3424.0,3422.8,6.14594618]
[1719768145004,3.0,3424.0,3422.9,0.61459462]
[1719768145218,3.0,3424.0,3423.0,5.9012169]
[1719768145359,3.0,3424.0,3423.0,6.14518881]
[1719768146698,2.694,3424.1,3423.0,6.14518881]
[1719768150373,0.005,3424.1,3423.0,6.14518881]
[1719768150575,0.005,3424.1,3423.1,0.67597834]
[1719768150806,0.005,3424.1,3423.2,5.90091686]
[1719768151013,0.005,3424.1,3423.3,0.05841711]
[1719768151311,0.005,3424.1,3423.4,0.24373158]
[1719768151610,0.005,3424.1,3423.2,5.8425]
[1719768151848,0.33991643,3425.2,3423.8,2.4664]
[1719768152031,0.33991643,3425.2,3423.9,5.89969058]
[1719768152214,0.33991643,3425.2,3423.9,6.14332119]
[1719768152547,0.33991643,3425.2,3424.0,0.86097212]
[1719768152748,0.33991643,3425.2,3424.1,5.841]
[1719768153055,0.33991643,3425.2,3424.1,6.08425336]
[1719768153248,0.33991643,3425.2,3424.2,2.4664]
[1719768153404,0.33991643,3425.2,3424.3,5.89898659]
[1719768153604,0.33991643,3425.2,3424.4,0.860864]
[1719768153903,0.33991643,3425.2,3424.5,6.14161028]
[1719768154109,0.33991643,3425.2,3424.5,6.08322098]
[1719768154317,0.33991643,3425.2,3424.6,0.05839264]
[1719768154608,0.33991643,3425.2,3424.7,6.074488]
[1719768155243,0.33991643,3425.2,3424.7,6.6819368]
[1719768156748,0.33991643,3425.2,3424.8,0.05838967]
[1719768156905,0.33991643,3425.2,3424.9,5.8396]
[1719768157110,0.33991643,3425.2,3424.9,6.07416709]
[1719768159568,2.689,3425.1,3424.9,6.07416709]
[1719768159736,10.196681,3425.0,3424.9,6.07416709]
[1719768159937,13.196681,3425.0,3424.9,6.07416709]
[1719768161127,13.196681,3425.0,3424.9,5.74198607]
[1719768161128,15.525181,3425.0,3424.9,5.74198607]
[1719768161324,16.075181,3425.0,3424.9,5.74198607]
[1719768161551,11.0785,3425.0,3424.9,5.74198607]
[1719768161723,11.0785,3425.0,3424.9,0.23456709]
[1719768161924,33.750368,3425.0,3422.2,3.636767]
[1719768162125,2.689,3423.7,3422.3,0.21234017]
[1719768163159,2.689,3423.2,3422.3,0.21234017]
[1719768163463,2.689,3423.2,3422.4,0.26787402]
[1719768163826,2.689,3423.2,3422.5,0.21229975]
[1719768164062,2.689,3423.2,3422.6,5.8431]
[1719768164242,2.689,3422.7,3422.6,5.8431]
[1719768166122,2.689,3423.2,3422.6,5.8431]
[1719768166460,3.0,3423.1,3422.6,5.8431]
[1719768167989,2.689,3422.7,3422.6,5.8431]
[1719768168172,7.719593,3422.7,3422.6,5.8431]
[1719768168484,9.270312,3422.7,3422.6,5.8431]
[1719768168656,12.270312,3422.7,3422.6,5.8431]
[1719768169088,12.270312,3422.7,3422.6,2.90943242]
[1719768169255,15.509312,3422.7,3420.1,2.4664]
[1719768169448,2.689,3421.5,3420.2,0.05845951]
[1719768169753,3.0,3422.1,3420.3,0.05845623]
[1719768169953,3.0,3422.0,3420.3,0.05845623]
[1719768170142,3.0,3422.0,3420.4,0.20638042]
[1719768170346,2.689,3421.8,3420.4,0.41490197]
[1719768170868,2.689,3421.8,3420.5,5.8461]
[1719768171074,2.689,3421.8,3420.5,5.90455278]
[1719768171381,2.689,3421.8,3420.6,0.20633996]
[1719768171554,2.689,3421.8,3420.7,5.90525437]
[1719768171756,2.689,3421.8,3420.8,0.669611]
[1719768171971,0.75,3423.1,3420.8,0.669611]
[1719768171972,2.3113,3424.4,3421.5,2.2687]
[1719768172169,5.2,3425.0,3420.8,3.81745893]
[1719768172170,2.689,3424.2,3421.8,2.2687]
[1719768172379,2.689,3424.2,3422.0,2.2687]
[1719768172703,2.689,3424.2,3422.1,6.45281494]
[1719768172861,2.689,3424.2,3422.1,6.65885158]
[1719768173187,2.689,3424.2,3422.2,2.2687]
[1719768173401,2.689,3424.2,3422.3,6.45240836]
[1719768173599,2.689,3424.2,3422.4,1.1522655]
[1719768173752,2.689,3424.2,3422.5,6.45210883]
[1719768173947,2.689,3424.2,3422.7,2.2687]
[1719768174170,3.0,3424.5,3422.8,5.90160614]
[1719768174461,2.689,3424.7,3422.8,5.90160614]
[1719768174462,3.0,3424.4,3422.8,6.10750133]
[1719768174663,3.0,3424.6,3422.9,0.83762013]
[1719768174900,3.0,3424.6,3423.0,5.90120935]
[1719768175061,3.0,3424.6,3423.0,6.10706413]
[1719768175446,3.0,3424.6,3423.0,6.04865478]
[1719768175681,2.689,3424.2,3423.1,0.68862749]
[1719768176076,2.689,3424.2,3423.2,6.04798335]
[1719768177568,2.689,3423.7,3423.2,6.04798335]
[1719768178951,2.689,3423.7,3423.2,5.8425]
[1719768179149,13.677601,3423.6,3423.3,0.20547845]
[1719768179352,4.154518,3423.6,3423.2,5.8425]
[1719768179585,4.274524,3423.6,3423.3,0.20552017]
[1719768179958,2.594515,3423.5,3423.2,5.8425]
[1719768180291,3.574517,3423.6,3423.4,0.20549997]
[1719768180494,2.689,3423.7,3423.3,0.20552017]
[1719768180701,2.689,3423.7,3423.5,0.20547978]
[1719768180903,2.689,3423.7,3423.4,0.20549997]
[1719768181050,2.689,3423.7,3423.6,0.20545958]
[1719768181250,9.338572,3423.7,3423.5,0.20547978]
[1719768181598,9.338572,3423.7,3423.6,0.20545958]
[1719768181599,2.689,3423.7,3423.6,0.20545958]
[1719768181800,15.43694,3423.7,3423.6,0.20545958]
[1719768182005,14.302672,3423.7,3423.2,5.8425]
[1719768182175,13.199295,3423.6,3423.2,5.8425]
[1719768182381,3.450492,3423.5,3423.2,5.8425]
[1719768182816,3.0,3423.4,3423.2,5.8425]
[1719768182963,12.342177,3423.3,3423.2,5.8425]
[1719768183167,15.342177,3423.3,3423.2,5.8425]
[1719768183369,15.342177,3423.3,3421.6,2.2687]
[1719768183567,2.689,3422.6,3421.6,2.2687]
[1719768183768,2.689,3422.6,3421.7,0.05843927]
[1719768184621,2.689,3422.6,3420.3,3.0]
[1719768184622,2.689,3422.6,3421.2,1.170764]
[1719768184765,2.689,3422.1,3421.1,2.2687]
[1719768184967,2.689,3422.1,3419.9,2.2687]
[1719768185320,2.689,3422.1,3420.4,1.171011]
[1719768185473,2.689,3422.1,3419.9,2.2687]
[1719768185778,2.689,3422.1,3420.0,5.8462]
[1719768185979,2.689,3422.1,3420.1,0.81149]
[1719768186195,2.689,3422.1,3420.2,5.8476]
[1719768186768,2.689,3422.1,3420.3,0.05845501]
[1719768186969,2.689,3422.1,3420.4,5.8473]
[1719768187180,2.689,3422.1,3420.5,0.05845419]
[1719768187402,2.689,3422.1,3420.7,2.2687]
[1719768187598,2.689,3422.1,3420.8,5.8466]
[1719768189489,2.689,3422.1,3420.9,0.05845087]
[1719768190503,2.689,3422.1,3420.8,5.8466]
[1719768190504,3.0,3422.0,3420.8,5.8466]
[1719768190910,3.0,3422.0,3420.9,0.05845725]
[1719768191945,3.0,3422.0,3420.8,5.8466]
[1719768192241,2.689,3421.6,3420.8,5.8466]
[1719768192612,3.0,3422.0,3420.8,5.8466]
[1719768192613,2.689,3421.1,3420.8,5.8466]
[1719768193027,2.689,3421.1,3420.9,0.20109584]
[1719768194358,2.689,3421.7,3420.9,0.20109584]
[1719768194641,3.0,3421.6,3420.8,5.8466]
[1719768197733,2.689,3421.2,3420.8,5.8466]
[1719768197919,7.005572,3421.1,3420.8,5.8466]
[1719768198113,6.483364,3421.0,3420.8,5.8466]
[1719768198731,6.483364,3421.0,3420.8,5.7966]
[1719768198919,5.608689,3421.0,3420.9,0.19023923]
[1719768199127,5.540223,3421.0,3420.9,0.19023923]
[1719768200141,8.540223,3421.0,3419.3,2.3462]
[1719768200342,2.689,3420.7,3419.4,0.3517654]
[1719768200777,2.689,3420.7,3419.5,0.19052252]
[1719768201466,2.689,3420.2,3419.5,0.19052252]
[1719768201671,2.689,3420.2,3419.3,2.3462]
[1719768201968,2.689,3420.2,3418.2,2.3462]
[1719768202331,2.689,3420.2,3418.3,0.19076552]
[1719768203132,2.689,3420.2,3418.3,0.18950416]
[1719768203330,2.689,3420.2,3418.4,0.0584924]
[1719768203561,2.689,3420.2,3418.5,0.18948669]
[1719768203757,2.689,3420.2,3418.6,0.05849242]
[1719768203956,2.689,3420.2,3418.7,0.18961318]
[1719768204182,2.689,3420.2,3418.8,0.05849244]
[1719768204340,2.689,3420.2,3418.9,0.18957268]
[1719768204548,2.689,3420.2,3418.5,0.05849246]
[1719768204754,2.689,3420.2,3418.6,0.18963343]
[1719768204969,2.689,3420.2,3418.7,0.05849246]
[1719768205164,2.689,3420.2,3418.8,0.18959293]
[1719768205369,2.689,3420.2,3418.9,0.05849148]
[1719768205594,3.0,3420.6,3419.0,8.1949]
[1719768205802,3.0,3420.6,3419.1,0.88381265]
[1719768205951,3.0,3420.6,3419.2,5.90777357]
[1719768206153,3.0,3420.6,3419.3,0.18949447]
[1719768206375,3.0,3420.6,3419.4,0.05847576]
[1719768206552,3.36711855,3420.6,3419.5,0.1894512]
[1719768206781,0.36711855,3420.5,3419.5,0.1894512]
[1719768207991,0.36711855,3420.5,3419.5,0.18943096]
[1719768208202,0.36711855,3420.5,3419.2,5.8493]
[1719768208443,0.36711855,3420.5,3419.6,0.18773228]
[1719768208740,0.36711855,3420.5,3419.2,5.8493]
[1719768208890,0.36711855,3420.5,3419.3,0.90208392]
[1719768209297,0.36711855,3420.5,3419.4,0.18779782]
[1719768209522,2.689,3420.2,3419.4,0.18779782]
[1719768209724,3.0,3420.6,3419.5,2.4038]
[1719768209923,3.0,3420.9,3419.6,0.24623095]
[1719768210238,2.689,3421.0,3419.7,6.69838309]
[1719768210441,0.36711855,3421.2,3419.8,0.05846555]
[1719768210609,0.36711855,3421.2,3419.9,5.8481]
[1719768210813,2.689,3420.9,3419.9,5.8481]
[1719768211015,3.09320188,3420.9,3420.0,0.18766384]
[1719768211206,3.09320188,3420.9,3420.0,0.66259992]
[1719768211207,0.40420188,3420.8,3420.0,0.66259992]
[1719768212044,0.40420188,3420.8,3420.0,0.60412711]
[1719768212752,0.40420188,3420.8,3420.0,0.18766384]
[1719768215249,2.689,3420.9,3420.0,0.18766384]
[1719768218418,2.689,3420.9,3420.1,5.8478]
[1719768218821,2.689,3420.9,3420.2,0.18750645]
[1719768220367,2.689,3421.4,3420.4,2.4038]
[1719768220662,2.689,3421.4,3420.5,0.18744575]
[1719768220834,3.0,3421.5,3420.6,0.05846572]
[1719768221035,3.0,3421.4,3420.6,5.8469]
[1719768221363,2.689,3420.7,3420.6,5.8469]
[1719768221865,3.12603522,3420.7,3420.6,5.8469]
[1719768223556,2.689,3420.7,3420.6,5.8469]
[1719768223921,6.12603522,3420.7,3420.6,5.8469]
[1719768224376,3.43703522,3420.7,3420.6,5.8469]
[1719768224667,0.43703522,3420.7,3420.6,5.8469]
[1719768224860,3.43703522,3420.7,3420.6,5.8469]
[1719768225229,0.43703522,3420.7,3420.6,5.8469]
[1719768225426,3.43703522,3420.7,3420.6,5.8469]
[1719768225749,0.43703522,3420.7,3420.6,5.8469]
[1719768229084,3.0,3420.9,3420.6,5.8469]
[1719768230797,0.43703522,3421.1,3420.7,2.3725]
[1719768230963,2.689,3421.6,3420.8,5.8466]
[1719768231166,0.43703522,3421.5,3420.8,6.03396835]
[1719768231367,3.43703522,3421.5,3420.8,6.03396835]
[1719768232050,3.0,3421.5,3420.8,6.03396835]
[1719768234395,0.43703522,3421.4,3420.8,6.03396835]
[1719768236305,2.689,3421.1,3420.8,6.03396835]
[1719768236598,0.43703522,3421.0,3420.8,5.8466]
[1719768236817,0.43703522,3421.0,3420.9,0.18728412]
[1719768240001,2.45203522,3421.0,3420.9,0.18728412]
[1719768240666,2.45203522,3421.0,3420.8,5.8466]
[1719768243713,6.269284,3420.9,3419.5,2.3725]
[1719768243927,2.015,3420.2,3419.5,2.3725]
[1719768244069,2.45203522,3420.2,3419.6,0.18754718]
[1719768244422,2.45203522,3420.2,3419.7,0.18752694]
[1719768244423,0.43703522,3420.1,3419.7,0.18752694]
[1719768244565,0.43703522,3420.1,3419.0,2.3725]
[1719768244767,0.43703522,3420.1,3419.1,0.5420544]
[1719768245368,0.43703522,3420.1,3419.1,0.1876484]
[1719768245672,2.015,3419.7,3419.1,0.1876484]
[1719768246769,2.45203522,3419.7,3419.1,0.1876484]
[1719768246969,2.45203522,3419.7,3418.5,2.3725]
[1719768247169,2.45203522,3419.7,3418.6,0.18774966]
[1719768247417,2.45203522,3419.7,3418.7,0.25602497]
[1719768247418,0.43703522,3419.6,3418.7,0.25602497]
[1719768247770,0.43703522,3419.6,3418.5,2.3725]
[1719768248281,2.015,3419.3,3418.5,2.3725]
[1719768248542,2.015,3419.3,3417.0,3.089]
[1719768248543,0.43703522,3419.2,3418.0,2.3725]
[1719768248670,0.43703522,3419.2,3418.6,0.18774966]
[1719768248868,0.43703522,3419.2,3418.0,2.3725]
[1719768249097,3.0,3419.6,3418.7,0.1877294]
[1719768249098,2.015,3419.6,3418.7,0.1877294]
[1719768249290,2.015,3419.6,3418.1,0.05850444]
[1719768249291,2.45203522,3419.6,3418.1,0.05850444]
[1719768249844,0.43703522,3419.5,3418.2,0.18783068]
[1719768249970,0.43703522,3419.5,3418.3,0.05849709]
[1719768250175,0.68223874,3419.5,3418.4,0.18779017]
[1719768250383,3.68223874,3419.5,3418.0,2.3725]
[1719768250590,3.68223874,3419.5,3418.1,0.18785094]
[1719768251198,3.68223874,3419.5,3418.2,3.4469]
[1719768251402,3.68223874,3419.5,3418.3,0.78853551]
[1719768251598,3.68223874,3419.5,3418.4,3.4473]
[1719768251806,3.68223874,3419.5,3418.5,0.18776991]
[1719768252111,3.43703522,3419.5,3418.6,0.0585005]
[1719768252275,0.43703522,3419.5,3418.6,0.0585005]
[1719768252470,0.43703522,3419.5,3418.7,3.6347294]
[1719768256129,2.3343,3421.3,3418.9,2.3501]
[1719768256316,2.44910714,3420.7,3419.0,4.10951264]
[1719768256476,2.44910714,3420.7,3419.0,4.29737059]
[1719768257221,2.015,3420.3,3419.0,4.29737059]
[1719768257436,7.75410714,3420.1,3419.0,4.29737059]
[1719768257646,0.43410714,3420.0,3419.0,4.29737059]
[1719768257938,7.32,3420.1,3419.0,4.29737059]
[1719768258236,7.32,3420.1,3419.1,0.66474706]
[1719768258444,7.75410714,3420.1,3419.2,3.63439956]
[1719768258640,0.43410714,3420.0,3419.2,3.63439956]
[1719768260700,2.015,3419.8,3419.2,3.63439956]
[1719768260942,0.43410714,3419.7,3419.2,3.63439956]
[1719768263501,2.015,3419.4,3419.2,3.63439956]
[1719768263754,2.44910714,3419.4,3419.2,3.63439956]
[1719768264241,0.43410714,3419.3,3419.2,3.63439956]
[1719768264600,0.43410714,3419.3,3419.2,3.4465]
[1719768264844,0.43410714,3419.3,3419.2,3.63439956]
[1719768265223,2.71480785,3419.3,3419.2,3.63439956]
[1719768265422,5.71480785,3419.3,3419.2,3.63439956]
[1719768266137,5.71480785,3419.3,3419.2,0.18789956]
[1719768266463,5.71480785,3419.3,3417.5,2.3501]
[1719768266757,2.015,3418.7,3417.5,2.3501]
[1719768266931,2.015,3418.7,3417.6,0.52808065]
[1719768267118,2.015,3418.7,3417.6,0.3522132]
[1719768268629,7.32,3420.6,3418.4,2.3501]
[1719768268972,7.32,3420.6,3418.3,2.015]
[1719768268973,7.32,3420.6,3418.8,2.3501]
[1719768269188,2.015,3420.4,3418.8,2.3501]
[1719768269472,2.015,3420.4,3418.9,0.40495672]
[1719768271638,0.42399773,3420.3,3418.9,0.23501]
[1719768272564,0.42399773,3420.3,3419.0,0.05848553]
[1719768274383,0.42399773,3420.3,3418.9,0.23501]
[1719768274952,0.42399773,3420.3,3419.0,3.50458558]
[1719768275154,0.42399773,3420.3,3419.0,4.11355514]
[1719768275464,0.42399773,3420.3,3419.1,0.16977459]
[1719768275996,0.42399773,3420.3,3419.2,0.05848556]
[1719768276318,0.42399773,3420.3,3419.1,0.16977459]
[1719768276482,0.42399773,3420.3,3419.3,0.16973409]
[1719768276656,0.42399773,3420.3,3419.2,0.16975434]
[1719768277489,0.42399773,3420.3,3419.3,0.05848554]
[1719768277896,0.42399773,3420.3,3419.4,3.6102243]
[1719768278054,0.42399773,3420.3,3419.4,3.66870551]
[1719768278891,0.42399773,3420.3,3419.5,0.05847968]
[1719768279251,0.42399773,3420.3,3419.6,0.16388382]
[1719768280289,0.42399773,3420.3,3419.4,3.4463]
[1719768280448,0.42399773,3420.3,3419.7,0.16386358]
[1719768280779,0.42399773,3420.3,3419.4,3.4463]
[1719768281290,0.42399773,3420.3,3419.5,0.16390406]
[1719768281451,2.015,3420.4,3419.5,0.16390406]
[1719768282594,2.43899773,3420.4,3419.5,0.16390406]
[1719768285180,7.32,3420.6,3419.6,5.80138363]
[1719768285608,7.32,3420.6,3419.7,0.15839069]
[1719768285912,7.32,3420.6,3419.8,3.50437527]
[1719768286222,0.42399773,3420.9,3419.8,3.50437527]
[1719768286416,0.42399773,3420.9,3419.9,0.75430681]
[1719768286724,0.42399773,3420.9,3420.0,3.50417202]
[1719768287064,0.42399773,3420.9,3420.1,0.15830974]
[1719768287730,0.42399773,3420.9,3420.2,3.4455]
[1719768288221,0.42399773,3420.9,3420.3,0.15826927]
[1719768288379,0.42399773,3420.9,3420.2,3.4455]
[1719768288586,0.42399773,3420.9,3420.3,0.15826927]
[1719768288780,0.42399773,3420.9,3420.2,3.4455]
[1719768289018,0.42399773,3420.9,3420.3,0.15826927]
[1719768289320,0.42399773,3420.9,3420.2,3.4455]
[1719768289719,0.42399773,3420.9,3420.3,0.15826927]
[1719768290032,0.42399773,3420.9,3420.2,3.4455]
[1719768290402,0.42399773,3420.9,3420.3,0.15826927]
[1719768290592,0.42399773,3420.9,3420.2,3.4455]
[1719768290794,2.015,3420.8,3420.3,0.15826927]
[1719768291082,2.015,3420.8,3420.2,3.4455]
[1719768291586,2.015,3420.8,3420.3,0.15826927]
[1719768291814,2.015,3420.8,3420.2,3.4455]
[1719768291982,2.015,3420.8,3420.3,0.15826927]
[1719768292327,2.015,3420.8,3420.2,3.4455]
[1719768292836,2.015,3420.8,3420.3,0.15826927]
[1719768292980,2.015,3420.8,3420.2,3.4455]
[1719768293180,2.015,3420.8,3420.3,0.15826927]
[1719768293508,2.015,3420.8,3420.2,3.4455]
[1719768293879,2.015,3420.8,3420.3,0.15826927]
[1719768294276,2.015,3420.8,3420.2,3.4455]
[1719768294513,2.015,3420.8,3420.3,0.15826927]
[1719768294908,2.015,3420.8,3420.2,3.4455]
[1719768295306,2.015,3420.8,3420.3,0.15823487]